bitfinex/quotes_BTCUSD_20250110
["timestamp","ask_amount","ask_price","bid_price","bid_amount"]
[1736492684946,0.21212,94286.0,94285.0,0.09216985]
[1736492685760,0.21212,94286.0,94285.0,0.09416985]
[1736492686262,0.31641976,94286.0,94285.0,0.09216985]
[1736492686611,0.31641976,94286.0,94285.0,0.09516985]
[1736492687049,0.31641976,94286.0,94285.0,0.09216985]
[1736492687250,0.39631976,94286.0,94285.0,0.09216985]
[1736492687509,0.31641976,94286.0,94285.0,0.09316985]
[1736492688303,0.31641976,94286.0,94285.0,0.08416983]
[1736492688479,0.31941976,94286.0,94285.0,0.08416983]
[1736492688696,0.31641976,94286.0,94285.0,0.08416983]
[1736492688919,0.31641976,94286.0,94285.0,0.08316983]
[1736492689117,0.32241976,94286.0,94285.0,0.08316983]
[1736492689397,0.32341976,94286.0,94285.0,0.08316983]
[1736492689779,0.32241976,94286.0,94285.0,0.08316983]
[1736492690218,0.32341976,94286.0,94285.0,0.08316983]
[1736492693143,0.32241976,94286.0,94285.0,0.08316983]
[1736492693346,0.32241976,94286.0,94285.0,0.07416981]
[1736492693347,0.32341976,94286.0,94285.0,0.07416981]
[1736492693947,0.32241976,94286.0,94285.0,0.07416981]
[1736492695978,0.32341976,94286.0,94285.0,0.07416981]
[1736492698355,0.32341976,94286.0,94285.0,0.06516979]
[1736492699583,0.212125,94284.0,94281.0,0.1]
[1736492699790,0.212129,94282.0,94281.0,0.10014614]
[1736492700092,0.31642876,94282.0,94281.0,0.10014614]
[1736492701451,0.32042876,94282.0,94281.0,0.10014614]
[1736492701882,0.216129,94282.0,94281.0,0.10014614]
[1736492702495,0.004,94282.0,94281.0,0.10014614]
[1736492702665,0.212087,94301.0,94281.0,0.22644614]
[1736492702873,0.212098,94296.0,94282.0,0.212129]
[1736492703080,0.212087,94301.0,94286.0,0.212118]
[1736492703315,0.212085,94302.0,94288.0,0.21225647]
[1736492703453,0.212085,94302.0,94289.0,0.0465]
[1736492703661,0.15,94301.0,94289.0,0.0465]
[1736492703869,0.15,94301.0,94290.0,0.00014047]
[1736492704064,0.15,94301.0,94291.0,0.0757]
[1736492704270,0.15,94301.0,94292.0,0.212107]
[1736492704514,0.212079,94305.0,94292.0,0.212107]
[1736492704726,0.212069,94309.0,94298.0,0.212092]
[1736492704928,0.212058,94314.0,94299.0,0.0465]
[1736492705078,0.01043005,94322.0,94302.0,0.00014047]
[1736492705280,0.15,94320.0,94310.0,0.212066]
[1736492705529,0.212041,94321.0,94310.0,0.212066]
[1736492705745,0.212041,94321.0,94309.0,0.00014047]
[1736492705746,0.2544477,94321.0,94309.0,0.00014047]
[1736492705990,0.15,94320.0,94310.0,0.212066]
[1736492706193,0.15,94320.0,94312.0,0.00014047]
[1736492706979,0.212033,94325.0,94312.0,0.00014047]
[1736492707175,0.21217903,94325.0,94312.0,0.00014047]
[1736492707382,0.00014603,94325.0,94320.0,0.00014047]
[1736492707598,0.00014603,94325.0,94315.0,0.02314047]
[1736492707803,0.0212171,94324.0,94318.0,0.00014047]
[1736492708005,0.0212171,94324.0,94317.0,0.00014047]
[1736492708206,0.001,94320.0,94318.0,0.00014047]
[1736492708410,0.001,94320.0,94315.0,0.02314047]
[1736492708584,0.0212171,94324.0,94315.0,0.02314047]
[1736492708794,0.00014603,94325.0,94315.0,0.02314047]
[1736492708795,0.03354648,94323.0,94315.0,0.02314047]
[1736492709379,0.24558448,94323.0,94314.0,0.0471]
[1736492709591,0.03354648,94323.0,94314.0,0.0471]
[1736492709835,0.21205,94318.0,94315.0,0.002]
[1736492710146,0.212041,94322.0,94315.0,0.002]
[1736492710344,0.212041,94322.0,94314.0,0.0471]
[1736492710893,0.212044,94320.0,94314.0,0.0471]
[1736492711659,0.0362187,94321.0,94314.0,0.0491]
[1736492712164,0.0362187,94321.0,94314.0,0.0471]
[1736492712504,0.0362187,94321.0,94314.0,0.0481]
[1736492712936,0.0362187,94321.0,94314.0,0.0471]
[1736492713317,0.0362187,94321.0,94314.0,0.03909998]
[1736492713750,0.212035,94324.0,94314.0,0.03909998]
[1736492714153,0.212037,94323.0,94314.0,0.03909998]
[1736492714353,0.002,94320.0,94314.0,0.03909998]
[1736492715188,0.212035,94324.0,94314.0,0.03909998]
[1736492715357,0.00014603,94325.0,94314.0,0.03809998]
[1736492715560,0.216035,94324.0,94314.0,0.03809998]
[1736492717039,0.212035,94324.0,94314.0,0.03809998]
[1736492717245,0.213035,94324.0,94314.0,0.03809998]
[1736492717451,0.003,94320.0,94314.0,0.03809998]
[1736492717748,0.213035,94324.0,94314.0,0.03809998]
[1736492718190,0.212047,94319.0,94314.0,0.03809998]
[1736492718382,0.212047,94319.0,94314.0,0.02909996]
[1736492718747,0.212057,94315.0,94309.0,0.00014047]
[1736492718955,0.212057,94315.0,94307.0,0.0843]
[1736492719133,0.212057,94315.0,94308.0,0.023]
[1736492719539,0.212065,94311.0,94302.0,0.00014047]
[1736492720199,0.424097,94318.0,94304.0,0.21221947]
[1736492720791,0.212048,94318.0,94304.0,0.21221947]
[1736492721394,0.217048,94318.0,94306.0,0.212075]
[1736492721590,0.217048,94318.0,94305.0,0.0472]
[1736492722232,0.212048,94318.0,94305.0,0.0472]
[1736492722549,0.212048,94318.0,94306.0,0.212075]
[1736492722769,0.00014603,94325.0,94313.0,0.21219947]
[1736492723413,0.00014603,94325.0,94313.0,0.20319945]
[1736492723758,0.004,94318.0,94313.0,0.20319945]
[1736492723975,0.00014603,94325.0,94313.0,0.20319945]
[1736492724423,0.00614603,94325.0,94313.0,0.20319945]
[1736492724787,0.00014603,94325.0,94313.0,0.20319945]
[1736492724981,0.00014603,94325.0,94314.0,0.00014047]
[1736492725387,0.00114603,94325.0,94314.0,0.00014047]
[1736492725934,0.00414603,94325.0,94315.0,0.212055]
[1736492726310,0.00514603,94325.0,94315.0,0.212055]
[1736492726725,0.00414603,94325.0,94320.0,0.212042]
[1736492726966,0.00414603,94325.0,94322.0,0.04884047]
[1736492727175,0.00414603,94325.0,94322.0,0.47291847]
[1736492727317,0.00014603,94325.0,94322.0,0.26087947]
[1736492727925,0.00014603,94325.0,94322.0,0.04884047]
[1736492728130,0.00614603,94325.0,94322.0,0.04884047]
[1736492728448,0.00014603,94325.0,94322.0,0.03984045]
[1736492728872,0.00014603,94325.0,94320.0,0.001]
[1736492729097,0.4452887,94324.0,94320.0,0.001]
[1736492729282,0.212039,94322.0,94320.0,0.001]
[1736492729511,0.212054,94316.0,94306.0,0.00014047]
[1736492730041,0.00014603,94325.0,94315.0,0.00014047]
[1736492730297,0.00014603,94325.0,94315.0,0.07924047]
[1736492730298,0.212035,94324.0,94315.0,0.07924047]
[1736492730497,0.212035,94324.0,94313.0,0.00014047]
[1736492731184,0.212046,94320.0,94313.0,0.00014047]
[1736492731301,0.212046,94320.0,94310.0,0.00014047]
[1736492731714,0.212046,94320.0,94311.0,0.0139592]
[1736492732485,0.001,94320.0,94317.0,0.00014047]
[1736492732696,0.001,94320.0,94319.0,0.00014047]
[1736492732893,0.001,94320.0,94319.0,0.02314047]
[1736492733124,0.001,94320.0,94319.0,0.03728473]
[1736492733513,0.001,94320.0,94319.0,0.02828471]
[1736492733664,0.001,94320.0,94319.0,0.01414426]
[1736492733869,0.00014603,94325.0,94316.0,0.212051]
[1736492734071,0.00014603,94325.0,94312.0,0.212062]
[1736492734072,0.04256483,94325.0,94317.0,0.01414714]
[1736492734266,0.001,94320.0,94312.0,0.212062]
[1736492734467,0.212046,94319.0,94313.0,0.01414966]
[1736492734677,0.212046,94319.0,94303.0,0.0781]
[1736492734874,0.212046,94319.0,94307.0,0.0141583]
[1736492735080,0.212058,94314.0,94307.0,0.0141583]
[1736492735288,0.212058,94314.0,94299.0,0.21949]
[1736492735483,0.212058,94314.0,94303.0,0.22624606]
[1736492735924,0.212058,94314.0,94303.0,0.01416406]
[1736492736711,0.212068,94310.0,94303.0,0.01416406]
[1736492736949,0.2544806,94310.0,94303.0,0.01416406]
[1736492737335,0.291441,94322.0,94296.0,0.0876]
[1736492737336,0.212069,94309.0,94296.0,0.0876]
[1736492737582,0.212069,94309.0,94303.0,0.001]
[1736492738389,0.21208,94304.0,94303.0,0.001]
[1736492738598,0.31637976,94304.0,94303.0,0.001]
[1736492739223,0.15,94303.0,94281.0,0.1]
[1736492739474,0.212125,94284.0,94281.0,0.1]
[1736492739652,0.212125,94284.0,94282.0,0.01421718]
[1736492739852,0.212125,94284.0,94281.0,0.1]
[1736492740064,0.212103,94294.0,94281.0,0.1]
[1736492740273,0.212086,94301.0,94283.0,0.0771]
[1736492740478,0.03163858,94301.0,94291.0,0.212107]
[1736492740695,0.212068,94310.0,94292.0,0.023]
[1736492740989,0.212068,94310.0,94293.0,0.469307]
[1736492741198,0.212052,94317.0,94295.0,0.023]
[1736492741398,0.0212041,94321.0,94305.0,0.212076]
[1736492741645,0.15,94319.0,94305.0,0.212076]
[1736492741853,0.004,94301.0,94300.0,0.212089]
[1736492742020,0.004,94301.0,94300.0,0.235089]
[1736492742234,0.004,94301.0,94300.0,0.33975512]
[1736492742630,0.539418,94332.0,94301.0,0.023]
[1736492742832,0.212018,94332.0,94320.0,0.212042]
[1736492742967,0.006,94317.0,94316.0,0.235052]
[1736492744477,0.15,94329.0,94316.0,0.238052]
[1736492744655,0.15014606,94329.0,94316.0,0.238052]
[1736492744886,0.00014606,94329.0,94316.0,0.238052]
[1736492745519,0.212026,94328.0,94316.0,0.026]
[1736492745894,0.00014606,94329.0,94317.0,0.21205]
[1736492746187,0.00414606,94329.0,94317.0,0.21205]
[1736492746421,0.00014606,94329.0,94317.0,0.21205]
[1736492747561,0.00014606,94329.0,94317.0,0.21305]
[1736492748000,0.00014606,94329.0,94317.0,0.001]
[1736492748480,0.212028,94327.0,94317.0,0.001]
[1736492749280,0.212028,94327.0,94318.0,0.01419594]
[1736492749687,0.213028,94327.0,94315.0,0.0466]
[1736492749933,0.213028,94327.0,94317.0,0.001]
[1736492750088,0.213028,94327.0,94318.0,0.01419594]
[1736492750526,0.01854717,94326.0,94318.0,0.01419594]
[1736492750739,0.01854717,94326.0,94318.0,0.001]
[1736492750911,0.01854717,94326.0,94319.0,0.0141945]
[1736492751315,0.001,94327.0,94319.0,0.0141945]
[1736492751691,0.00014606,94329.0,94315.0,0.0466]
[1736492751895,0.001,94327.0,94320.0,0.01425301]
[1736492752104,0.212026,94328.0,94315.0,0.0466]
[1736492752310,0.212026,94328.0,94321.0,0.01431174]
[1736492752482,0.212026,94328.0,94315.0,0.0466]
[1736492752795,0.212026,94328.0,94316.0,0.01431893]
[1736492752998,0.212026,94328.0,94318.0,0.001]
[1736492753206,0.001,94327.0,94318.0,0.001]
[1736492753404,0.212026,94328.0,94319.0,0.01431461]
[1736492753787,0.212026,94328.0,94315.0,0.0476]
[1736492753984,0.212026,94328.0,94320.0,0.01427815]
[1736492754201,0.212026,94328.0,94315.0,0.0476]
[1736492754370,0.212026,94328.0,94321.0,0.01427671]
[1736492754601,0.212026,94328.0,94316.0,0.212053]
[1736492755003,0.212026,94328.0,94317.0,0.01428247]
[1736492755223,0.2128984,94328.0,94319.0,0.001]
[1736492755550,0.2118984,94328.0,94319.0,0.001]
[1736492755819,0.2118984,94328.0,94320.0,0.01433885]
[1736492756019,0.2128984,94328.0,94320.0,0.01433885]
[1736492756150,0.2118984,94328.0,94320.0,0.01433885]
[1736492756577,0.2128984,94328.0,94320.0,0.01433885]
[1736492756985,0.2118984,94328.0,94316.0,0.213053]
[1736492757186,0.2118984,94328.0,94321.0,0.01433741]
[1736492757391,0.2118984,94328.0,94316.0,0.212053]
[1736492757392,0.2128984,94328.0,94316.0,0.212053]
[1736492757591,0.2128984,94328.0,94322.0,0.01433597]
[1736492757808,0.2128984,94328.0,94320.0,0.001]
[1736492758009,0.2128984,94328.0,94323.0,0.01433453]
[1736492758211,0.2128984,94328.0,94316.0,0.212053]
[1736492758466,0.2128984,94328.0,94316.0,0.20305298]
[1736492758672,0.2128984,94328.0,94317.0,0.01434317]
[1736492758851,0.2118984,94328.0,94317.0,0.01434317]
[1736492759262,0.2128984,94328.0,94317.0,0.01434317]
[1736492759580,0.2118984,94328.0,94317.0,0.01434317]
[1736492759938,0.2128984,94328.0,94317.0,0.01434317]
[1736492760348,0.2128984,94328.0,94317.0,0.01534317]
[1736492762736,0.001,94328.0,94317.0,0.01534317]
[1736492762939,0.212045,94320.0,94317.0,0.01534317]
[1736492763138,0.212045,94320.0,94317.0,0.001]
[1736492763549,0.212045,94320.0,94306.0,0.258574]
[1736492763550,0.212045,94320.0,94307.0,0.023]
[1736492763844,0.21176024,94320.0,94308.0,0.01433947]
[1736492764285,0.21176024,94320.0,94307.0,0.023]
[1736492764457,0.21176024,94320.0,94309.0,0.023]
[1736492764726,0.21203,94326.0,94308.0,0.01283947]
[1736492764926,0.0806,94327.0,94308.0,0.01320583]
[1736492765035,0.0806,94327.0,94308.0,0.00036636]
[1736492765239,0.212048,94319.0,94309.0,0.01283803]
[1736492765703,0.212048,94319.0,94303.0,0.23023844]
[1736492765704,0.212048,94319.0,94304.0,0.023]
[1736492765903,0.212032,94325.0,94308.0,0.00036636]
[1736492765904,0.003,94320.0,94308.0,0.00036636]
[1736492766060,0.003,94320.0,94305.0,0.01284379]
[1736492766261,0.10429976,94324.0,94297.0,0.0478]
[1736492766262,0.212039,94322.0,94297.0,0.0478]
[1736492766485,0.0794,94319.0,94306.0,0.01284235]
[1736492766692,0.291466,94310.0,94309.0,0.001]
[1736492767091,0.0794,94310.0,94287.0,0.212116]
[1736492767293,0.212083,94303.0,94287.0,0.212116]
[1736492767494,0.212068,94309.0,94289.0,0.235113]
[1736492767695,0.212068,94309.0,94294.0,0.00036636]
[1736492767871,0.212068,94309.0,94292.0,0.00036636]
[1736492768270,0.212068,94309.0,94293.0,0.01287494]
[1736492768731,0.424138,94309.0,94291.0,0.212109]
[1736492768856,0.212068,94309.0,94291.0,0.212109]
[1736492769057,0.21208,94304.0,94291.0,0.212109]
[1736492769283,0.21208,94304.0,94292.0,0.01287638]
[1736492771115,0.212068,94309.0,94294.0,0.00036636]
[1736492771283,0.212068,94309.0,94293.0,0.212104]
[1736492771483,0.212068,94309.0,94295.0,0.01287206]
[1736492771682,0.212068,94309.0,94294.0,0.0128735]
[1736492771891,0.212073,94307.0,94295.0,0.01287206]
[1736492772338,0.212073,94307.0,94296.0,0.01287062]
[1736492772863,0.212073,94307.0,94297.0,0.01286918]
[1736492773162,0.212073,94307.0,94298.0,0.01286774]
[1736492773559,0.212073,94307.0,94291.0,0.212109]
[1736492773733,0.212073,94307.0,94296.0,0.001]
[1736492773943,0.212077,94305.0,94297.0,0.01286918]
[1736492774535,0.212077,94305.0,94298.0,0.001]
[1736492775009,0.2118093,94305.0,94298.0,0.001]
[1736492775822,0.2118093,94305.0,94291.0,0.212109]
[1736492776136,0.2118093,94305.0,94297.0,0.002]
[1736492776305,0.2118093,94305.0,94298.0,0.01286774]
[1736492776514,0.2118093,94305.0,94297.0,0.002]
[1736492777007,0.2118093,94305.0,94298.0,0.01286774]
[1736492777440,0.2118093,94305.0,94291.0,0.214109]
[1736492777754,0.2118093,94305.0,94292.0,0.01287638]
[1736492779317,0.2118093,94305.0,94298.0,0.001]
[1736492779934,0.2118093,94305.0,94291.0,0.212109]
[1736492780367,0.2118093,94305.0,94292.0,0.01387638]
[1736492781121,0.2118093,94305.0,94292.0,0.01287638]
[1736492782047,0.212099,94296.0,94292.0,0.01287638]
[1736492782284,0.212102,94294.0,94292.0,0.01287638]
[1736492782967,0.21212,94286.0,94280.0,0.0001706]
[1736492783452,0.212113,94290.0,94281.0,0.01290821]
[1736492783707,0.212113,94290.0,94280.0,0.00031674]
[1736492783933,0.24566668,94290.0,94280.0,0.00031674]
[1736492784171,0.212113,94290.0,94280.0,0.00031674]
[1736492784862,0.212113,94290.0,94281.0,0.01290821]
[1736492785654,0.215113,94290.0,94281.0,0.01290821]
[1736492785891,0.212113,94290.0,94281.0,0.01290821]
[1736492786092,0.215113,94290.0,94281.0,0.01290821]
[1736492788117,0.212116,94288.0,94281.0,0.01290821]
[1736492788494,0.212116,94288.0,94280.0,0.00031674]
[1736492789398,0.214116,94288.0,94281.0,0.001]
[1736492789595,0.212116,94288.0,94281.0,0.001]
[1736492789920,0.002,94288.0,94280.0,0.00031674]
[1736492790248,0.002,94288.0,94281.0,0.01140821]
[1736492791283,0.212113,94290.0,94281.0,0.01140821]
[1736492791708,0.002,94288.0,94281.0,0.01140821]
[1736492792392,0.212113,94290.0,94281.0,0.01140821]
[1736492792619,0.215113,94290.0,94281.0,0.01140821]
[1736492792958,0.212116,94288.0,94281.0,0.01240821]
[1736492793158,0.214116,94288.0,94281.0,0.001]
[1736492793752,0.214116,94288.0,94280.0,0.00031674]
[1736492794428,0.214116,94288.0,94281.0,0.01152073]
[1736492794840,0.212116,94288.0,94281.0,0.01252073]
[1736492795124,0.0424229,94287.0,94281.0,0.01252073]
[1736492795356,0.215113,94290.0,94281.0,0.01252073]
[1736492795552,0.212113,94290.0,94281.0,0.01252073]
[1736492795778,0.002,94288.0,94281.0,0.01252073]
[1736492796005,0.212113,94290.0,94281.0,0.01252073]
[1736492796467,0.001,94287.0,94281.0,0.01152073]
[1736492796687,0.212113,94290.0,94281.0,0.01252073]
[1736492797244,0.212113,94290.0,94281.0,0.01152073]
[1736492798169,0.002,94288.0,94281.0,0.01152073]
[1736492798377,0.002,94288.0,94281.0,0.00252071]
[1736492798638,0.002,94288.0,94287.0,0.212118]
[1736492798841,0.212081,94304.0,94287.0,0.212118]
[1736492799056,0.212081,94304.0,94291.0,0.212107]
[1736492799468,0.212077,94306.0,94291.0,0.212107]
[1736492800486,0.212077,94306.0,94291.0,0.424215]
[1736492800861,0.212068,94310.0,94293.0,0.212104]
[1736492801068,0.424135,94310.0,94293.0,0.424208]
[1736492801295,0.424135,94310.0,94293.0,0.212104]
[1736492801515,0.212078,94305.0,94293.0,0.212104]
[1736492802224,0.212078,94305.0,94294.0,0.01006706]
[1736492802444,0.002,94304.0,94294.0,0.01006706]
[1736492802683,0.212067,94310.0,94294.0,0.01006706]
[1736492802860,0.424135,94310.0,94294.0,0.01006706]
[1736492803044,0.215078,94305.0,94294.0,0.01006706]
[1736492803245,0.212078,94305.0,94294.0,0.01006706]
[1736492803443,0.212078,94305.0,94294.0,0.0085143]
[1736492804832,0.002,94304.0,94294.0,0.0085143]
[1736492805203,0.212078,94305.0,94294.0,0.0085143]
[1736492805631,0.215078,94305.0,94294.0,0.0085143]
[1736492805756,0.003,94305.0,94295.0,0.2121]
[1736492806127,0.003,94305.0,94296.0,0.00851497]
[1736492806332,0.293342,94321.0,94298.0,0.0488]
[1736492806548,0.212042,94321.0,94304.0,0.023]
[1736492806791,0.212042,94321.0,94305.0,0.212077]
[1736492806995,0.02935126,94320.0,94299.0,0.212091]
[1736492807127,0.212061,94313.0,94299.0,0.212091]
[1736492808476,0.001,94305.0,94299.0,0.20309098]
[1736492808881,0.212061,94313.0,94299.0,0.20309098]
[1736492809082,0.23747332,94313.0,94299.0,0.20309098]
[1736492809926,0.23747332,94313.0,94301.0,0.212086]
[1736492811072,0.23747332,94313.0,94300.0,0.008495]
[1736492811279,0.23747332,94313.0,94301.0,0.212086]
[1736492811733,0.24147332,94313.0,94300.0,0.008495]
[1736492812036,0.24147332,94313.0,94301.0,0.212086]
[1736492812037,0.02935126,94312.0,94301.0,0.212086]
[1736492812908,0.02935126,94312.0,94303.0,0.212082]
[1736492813318,0.02935126,94312.0,94303.0,0.21157253]
[1736492813526,0.03135126,94312.0,94304.0,0.00707546]
[1736492814733,0.03135126,94312.0,94304.0,0.00807546]
[1736492815398,0.31945886,94311.0,94304.0,0.00807546]
[1736492815608,0.31945886,94311.0,94304.0,0.001]
[1736492816454,0.31945886,94311.0,94295.0,0.21246436]
[1736492816797,0.31945886,94311.0,94295.0,0.212098]
[1736492816912,0.53152386,94311.0,94304.0,0.001]
[1736492817111,0.212068,94309.0,94304.0,0.001]
[1736492817433,0.212068,94309.0,94295.0,0.212098]
[1736492818197,0.02936872,94310.0,94299.0,0.21209]
[1736492818400,0.02936872,94310.0,94299.0,0.20308998]
[1736492818738,0.24143672,94310.0,94295.0,0.212098]
[1736492818944,0.24143672,94310.0,94286.0,0.21212]
[1736492818945,0.31636576,94310.0,94286.0,0.21212]
[1736492819139,0.0818,94298.0,94286.0,0.21212]
[1736492819311,0.1111893,94298.0,94288.0,0.212116]
[1736492819519,0.1111893,94298.0,94287.0,0.03009083]
[1736492819720,0.0818,94298.0,94295.0,0.001]
[1736492820123,0.212095,94297.0,94295.0,0.001]
[1736492820353,0.212107,94292.0,94289.0,0.00708795]
[1736492820532,0.212107,94292.0,94288.0,0.001]
[1736492821122,0.212107,94292.0,94281.0,0.212131]
[1736492821524,0.212107,94292.0,94282.0,0.00709803]
[1736492822741,0.212107,94292.0,94281.0,0.212131]
[1736492823079,0.212107,94292.0,94281.0,0.213131]
[1736492823584,0.212117,94288.0,94281.0,0.001]
[1736492824533,0.212117,94288.0,94280.0,0.00031674]
[1736492824935,0.212117,94288.0,94281.0,0.00913156]
[1736492826153,0.424234,94288.0,94281.0,0.00713156]
[1736492826494,0.212128,94283.0,94280.0,0.00031674]
[1736492826609,0.212128,94283.0,94280.0,0.00231674]
[1736492827012,0.212128,94283.0,94280.0,0.00031674]
[1736492827429,0.212128,94283.0,94281.0,0.002]
[1736492827685,0.212117,94288.0,94281.0,0.002]
[1736492827897,0.212117,94288.0,94280.0,0.00031674]
[1736492827898,0.2335727,94288.0,94280.0,0.00031674]
[1736492828476,0.2335727,94288.0,94280.0,0.00331674]
[1736492828661,0.001,94283.0,94280.0,0.00331674]
[1736492829085,0.2335727,94288.0,94280.0,0.00331674]
[1736492829534,0.212117,94288.0,94280.0,0.00331674]
[1736492829885,0.212126,94284.0,94280.0,0.00331674]
[1736492830105,0.001,94283.0,94280.0,0.00031674]
[1736492830458,0.001,94283.0,94280.0,0.00231674]
[1736492830885,0.001,94283.0,94280.0,0.00031674]
[1736492831122,0.0213126,94282.0,94280.0,0.00031674]
[1736492831422,0.0213126,94282.0,94280.0,0.00331674]
[1736492832079,0.0213126,94282.0,94280.0,0.00031674]
[1736492832359,0.0223126,94282.0,94280.0,0.00031674]
[1736492833567,0.0223126,94282.0,94280.0,0.00331674]
[1736492834599,0.03116326,94281.0,94280.0,0.00331674]
[1736492834962,0.24329426,94281.0,94280.0,0.00331674]
[1736492836032,0.212131,94281.0,94280.0,0.00331674]
[1736492836229,0.213131,94281.0,94280.0,0.00331674]
[1736492836451,0.212131,94281.0,94280.0,0.00331674]
[1736492836639,0.212131,94281.0,94280.0,0.00031674]
[1736492837598,0.212131,94281.0,94280.0,0.00331674]
[1736492838033,0.212131,94281.0,94280.0,0.00031674]
[1736492838441,0.212131,94281.0,94280.0,0.00231674]
[1736492839349,0.341331,94281.0,94280.0,0.00231674]
[1736492839547,0.342331,94281.0,94280.0,0.00231674]
[1736492839767,0.342331,94281.0,94280.0,0.00031674]
[1736492839971,0.342331,94281.0,94280.0,0.00131674]
[1736492840631,0.342331,94281.0,94280.0,0.00031674]
[1736492840842,0.342331,94281.0,94280.0,0.00131674]
[1736492841043,0.341331,94281.0,94280.0,0.00131674]
[1736492841539,0.343331,94281.0,94280.0,0.00031674]
[1736492841812,0.342331,94281.0,94280.0,0.00031674]
[1736492842200,0.345331,94281.0,94280.0,0.00031674]
[1736492842981,0.341331,94281.0,94280.0,0.00031674]
[1736492843429,0.342331,94281.0,94280.0,0.00031674]
[1736492843894,0.341331,94281.0,94280.0,0.00031674]
[1736492844343,0.346331,94281.0,94280.0,0.00031674]
[1736492844573,0.342331,94281.0,94280.0,0.00031674]
[1736492844982,0.346331,94281.0,94280.0,0.00031674]
[1736492845605,0.297031,94281.0,94280.0,0.00031674]
[1736492845767,0.217131,94281.0,94280.0,0.00031674]
[1736492848448,0.212154,94271.0,94262.0,0.023]
[1736492848881,0.212154,94271.0,94263.0,0.00717023]
[1736492850308,0.212154,94271.0,94263.0,0.00753659]
[1736492850715,0.212154,94271.0,94263.0,0.00853659]
[1736492851110,0.212154,94271.0,94263.0,0.00753659]
[1736492851551,0.04243,94270.0,94263.0,0.00753659]
[1736492852516,0.04243,94270.0,94263.0,0.00853659]
[1736492852915,0.212158,94269.0,94263.0,0.00817023]
[1736492853156,0.212158,94269.0,94263.0,0.00717023]
[1736492853364,0.212158,94269.0,94263.0,0.001]
[1736492853529,0.01233358,94268.0,94263.0,0.001]
[1736492853926,0.01233358,94268.0,94257.0,0.023]
[1736492854327,0.01233358,94268.0,94263.0,0.001]
[1736492854515,0.212163,94267.0,94263.0,0.001]
[1736492855534,0.424327,94267.0,94263.0,0.001]
[1736492855745,0.0768,94264.0,94263.0,0.001]
[1736492855959,0.18109976,94264.0,94263.0,0.001]
[1736492856154,0.636516,94263.0,94255.0,8.53e-05]
[1736492856385,0.212172,94263.0,94255.0,8.53e-05]
[1736492856586,0.424348,94262.0,94257.0,0.001]
[1736492857016,0.212188,94256.0,94255.0,8.53e-05]
[1736492857451,0.212188,94256.0,94255.0,0.0010853]
[1736492857794,0.39358776,94256.0,94255.0,0.0010853]
[1736492858581,0.212188,94256.0,94255.0,0.0010853]
[1736492858806,0.29972365,94270.0,94255.0,8.53e-05]
[1736492859013,0.212158,94269.0,94256.0,0.212188]
[1736492859227,0.539547,94275.0,94258.0,0.212183]
[1736492859430,0.212156,94271.0,94258.0,0.212183]
[1736492859630,0.212156,94271.0,94259.0,0.00726073]
[1736492861071,0.009,94270.0,94259.0,0.00726073]
[1736492861478,0.212156,94271.0,94259.0,0.00726073]
[1736492861680,0.214156,94271.0,94259.0,0.00726073]
[1736492862046,0.212156,94271.0,94259.0,0.00726073]
[1736492862271,0.002,94270.0,94260.0,0.212179]
[1736492862495,0.002,94270.0,94261.0,0.00725785]
[1736492862675,0.212147,94274.0,94261.0,0.00725785]
[1736492863503,0.0768,94278.0,94268.0,0.212159]
[1736492863798,0.0768,94278.0,94261.0,0.00725785]
[1736492863799,0.212134,94280.0,94266.0,0.0489]
[1736492863967,0.002,94271.0,94269.0,0.00724632]
[1736492864172,0.002,94271.0,94267.0,0.0072492]
[1736492864374,0.212134,94280.0,94267.0,0.0072492]
[1736492864623,0.21214,94277.0,94268.0,0.001]
[1736492865081,0.21214,94277.0,94266.0,0.0489]
[1736492865252,0.005,94278.0,94268.0,0.212161]
[1736492865729,0.212137,94279.0,94269.0,0.00724632]
[1736492866126,0.001,94277.0,94269.0,0.00724632]
[1736492867173,0.001,94277.0,94269.0,0.00824632]
[1736492867374,0.212137,94279.0,94269.0,0.00824632]
[1736492867587,0.424294,94274.0,94269.0,0.00824632]
[1736492867827,0.424294,94274.0,94261.0,0.00036636]
[1736492867986,0.212147,94274.0,94261.0,0.00036636]
[1736492868203,0.212147,94274.0,94269.0,0.001]
[1736492868584,0.212152,94272.0,94261.0,0.00036636]
[1736492868792,0.212152,94272.0,94258.0,0.212181]
[1736492869038,0.212152,94272.0,94269.0,0.001]
[1736492869656,0.212152,94272.0,94261.0,0.00036636]
[1736492870057,0.212152,94272.0,94263.0,0.00722874]
[1736492870858,0.213152,94272.0,94263.0,0.00722874]
[1736492871024,0.212152,94272.0,94263.0,0.00722874]
[1736492871448,0.212152,94272.0,94263.0,0.00822874]
[1736492871655,0.212152,94272.0,94263.0,0.00722874]
[1736492872119,0.213152,94272.0,94263.0,0.00722874]
[1736492872529,0.213152,94272.0,94263.0,0.00822874]
[1736492872894,0.001,94272.0,94263.0,0.21939974]
[1736492873295,0.001,94272.0,94263.0,0.21139972]
[1736492873674,0.212141,94277.0,94264.0,0.00722865]
[1736492873950,0.001,94272.0,94264.0,0.00722865]
[1736492874182,0.212141,94277.0,94264.0,0.00722865]
[1736492874510,0.001,94272.0,94264.0,0.00722865]
[1736492874716,0.212141,94277.0,94264.0,0.00722865]
[1736492874920,0.2333551,94277.0,94264.0,0.00722865]
[1736492875840,0.212152,94272.0,94264.0,0.00722865]
[1736492876235,0.212152,94272.0,94262.0,0.0074]
[1736492876817,0.213152,94272.0,94262.0,0.0074]
[1736492877050,0.212152,94272.0,94262.0,0.0074]
[1736492877215,0.212152,94272.0,94261.0,0.00036636]
[1736492877216,0.03354948,94271.0,94256.0,0.04556636]
[1736492877419,0.0812,94270.0,94254.0,8.53e-05]
[1736492877616,0.212176,94262.0,94254.0,8.53e-05]
[1736492878408,0.212185,94258.0,94254.0,8.53e-05]
[1736492878612,0.0796,94257.0,94254.0,8.53e-05]